[Event "*** Titled Tuesday Blitz"]
[Site "Chess.com"]
[Date "2020.05.26"]
[Round "1"]
[White "Everyfishknows"]
[Black "Sankalp_Gupta2003"]
[Result "0-1"]
[WhiteElo "2341"]
[BlackElo "2703"]
[TimeControl "180+1"]
[EndTime "10:09:50 PDT"]
[Termination "Sankalp_Gupta2003 won by resignation"]

1. Nf3 {[%clk 0:02:58.2]} 1... d5 {[%clk 0:02:59.6]} 2. c4 {[%clk 0:02:58.2]}
2... d4 {[%clk 0:02:56.1]} 3. g3 {[%clk 0:02:58.1]} 3... Nc6 {[%clk 0:02:45.7]}
4. Bg2 {[%clk 0:02:57.6]} 4... e5 {[%clk 0:02:45.7]} 5. d3 {[%clk 0:02:58]} 5...
Bb4+ {[%clk 0:02:43.6]} 6. Bd2 {[%clk 0:02:56.1]} 6... a5 {[%clk 0:02:42.9]} 7.
O-O {[%clk 0:02:56.1]} 7... Nf6 {[%clk 0:02:41.4]} 8. a3 {[%clk 0:02:56.3]} 8...
Be7 {[%clk 0:02:37.5]} 9. e3 {[%clk 0:02:56.4]} 9... O-O {[%clk 0:02:36.8]} 10.
exd4 {[%clk 0:02:54.6]} 10... exd4 {[%clk 0:02:37.7]} 11. Bf4 {[%clk 0:02:46.7]}
11... Bf5 {[%clk 0:02:15.5]} 12. Ne5 {[%clk 0:02:38.6]} 12... Nxe5 {[%clk
0:02:15.7]} 13. Bxe5 {[%clk 0:02:39.5]} 13... c6 {[%clk 0:02:16.3]} 14. Re1
{[%clk 0:02:35]} 14... Re8 {[%clk 0:02:16]} 15. Qc2 {[%clk 0:02:03.1]} 15... Ng4
{[%clk 0:02:03.5]} 16. Bf4 {[%clk 0:01:52.1]} 16... g5 {[%clk 0:02:03.3]} 17.
Bc1 {[%clk 0:01:47.4]} 17... Qd6 {[%clk 0:02:02.7]} 18. Nd2 {[%clk 0:01:44.5]}
18... Bf8 {[%clk 0:01:40.2]} 19. Ne4 {[%clk 0:01:42]} 19... Bxe4 {[%clk
0:01:33.8]} 20. Rxe4 {[%clk 0:01:34.8]} 20... Rxe4 {[%clk 0:01:29.3]} 21. Bxe4
{[%clk 0:01:35.7]} 21... h6 {[%clk 0:01:22.2]} 22. Bd2 {[%clk 0:01:28.8]} 22...
a4 {[%clk 0:01:18.6]} 23. Re1 {[%clk 0:01:27.3]} 23... Bg7 {[%clk 0:01:16.5]}
24. Kg2 {[%clk 0:01:01.4]} 24... Qf6 {[%clk 0:00:58.8]} 25. Re2 {[%clk
0:00:59.1]} 25... h5 {[%clk 0:00:49.4]} 26. Qc1 {[%clk 0:00:55.8]} 26... Bh6
{[%clk 0:00:49.1]} 27. h3 {[%clk 0:00:34.1]} 27... Ne5 {[%clk 0:00:35.3]} 28. h4
{[%clk 0:00:33.8]} 28... Bg7 {[%clk 0:00:26.1]} 29. hxg5 {[%clk 0:00:28.2]}
29... Qd6 {[%clk 0:00:25.7]} 30. Bf4 {[%clk 0:00:27.5]} 30... Re8 {[%clk
0:00:22.3]} 31. Qh1 {[%clk 0:00:27]} 31... Qd7 {[%clk 0:00:16]} 32. Qxh5 {[%clk
0:00:25.3]} 32... Ng6 {[%clk 0:00:15.7]} 33. Bxg6 {[%clk 0:00:21.7]} 33... fxg6
{[%clk 0:00:16.6]} 34. Qf3 {[%clk 0:00:14.7]} 34... Rxe2 {[%clk 0:00:15.9]} 35.
Qxe2 {[%clk 0:00:15.6]} 35... Qf5 {[%clk 0:00:15.6]} 36. Qe4 {[%clk 0:00:06]}
36... Qg4 {[%clk 0:00:15.4]} 37. Qf3 {[%clk 0:00:05.8]} 37... Qe6 {[%clk
0:00:13.9]} 38. Qe4 {[%clk 0:00:05.3]} 38... Qf7 {[%clk 0:00:12.4]} 39. Bd2
{[%clk 0:00:04.7]} 39... Kh7 {[%clk 0:00:12.3]} 40. Qf4 {[%clk 0:00:05]} 40...
Qe6 {[%clk 0:00:11.2]} 41. Qh4+ {[%clk 0:00:05.5]} 41... Kg8 {[%clk 0:00:11.1]}
42. Qe4 {[%clk 0:00:06.2]} 42... Qd7 {[%clk 0:00:10.6]} 43. Bc1 {[%clk
0:00:03.9]} 43... Kh7 {[%clk 0:00:08]} 44. Bd2 {[%clk 0:00:04]} 44... c5 {[%clk
0:00:07]} 45. Bf4 {[%clk 0:00:04.4]} 45... b5 {[%clk 0:00:07.2]} 46. cxb5 {[%clk
0:00:04.4]} 46... Qxb5 {[%clk 0:00:07.7]} 47. Qe2 {[%clk 0:00:04.4]} 47... Qb3
{[%clk 0:00:07.1]} 48. Qd2 {[%clk 0:00:04.5]} 48... Qd5+ {[%clk 0:00:07.1]} 49.
Kg1 {[%clk 0:00:04]} 49... c4 {[%clk 0:00:08]} 50. dxc4 {[%clk 0:00:04.2]} 50...
Qxc4 {[%clk 0:00:08.9]} 51. Kg2 {[%clk 0:00:04.4]} 51... d3 {[%clk 0:00:08.9]}
52. Be3 {[%clk 0:00:04.8]} 52... Qd5+ {[%clk 0:00:09.2]} 53. Kg1 {[%clk
0:00:04.4]} 53... Qb3 {[%clk 0:00:09.6]} 54. Kg2 {[%clk 0:00:04.8]} 54... Bxb2
{[%clk 0:00:09.8]} 55. Bc5 {[%clk 0:00:03.9]} 55... Bg7 {[%clk 0:00:09.9]} 56.
Bb4 {[%clk 0:00:04]} 56... Qc2 {[%clk 0:00:09.5]} 57. Qf4 {[%clk 0:00:04]} 57...
Qc6+ {[%clk 0:00:08.4]} 58. Qf3 {[%clk 0:00:03.8]} 58... Qd7 {[%clk 0:00:08]}
59. Qd1 {[%clk 0:00:03.6]} 59... Qd5+ {[%clk 0:00:07.1]} 60. Qf3 {[%clk
0:00:03.7]} 60... Qb3 {[%clk 0:00:06.7]} 61. Qe4 {[%clk 0:00:02.3]} 61... Qd1
{[%clk 0:00:06]} 62. Qe3 {[%clk 0:00:01.7]} 62... Qc2 {[%clk 0:00:05.3]} 63. Qf3
{[%clk 0:00:02]} 63... Qb3 {[%clk 0:00:04.4]} 64. Qe3 {[%clk 0:00:01.5]} 64...
Kg8 {[%clk 0:00:04.6]} 65. Qd2 {[%clk 0:00:02]} 65... Kf7 {[%clk 0:00:04.9]} 66.
Kg1 {[%clk 0:00:02.6]} 66... Qd5 {[%clk 0:00:05.3]} 67. Kf1 {[%clk 0:00:02.5]}
67... Ke6 {[%clk 0:00:05.5]} 68. Kg1 {[%clk 0:00:02.8]} 68... Kd7 {[%clk
0:00:04.8]} 69. Qe3 {[%clk 0:00:03.1]} 69... Kc6 {[%clk 0:00:04.3]} 70. Qc1+
{[%clk 0:00:02.6]} 70... Kb5 {[%clk 0:00:04.2]} 71. Qd2 {[%clk 0:00:02.7]} 71...
Qc4 {[%clk 0:00:04.1]} 72. Kg2 {[%clk 0:00:02.4]} 72... Qd5+ {[%clk 0:00:04.4]}
73. Kg1 {[%clk 0:00:02.6]} 73... Kc4 {[%clk 0:00:04.8]} 74. Qc1+ {[%clk
0:00:02.6]} 74... Kb3 {[%clk 0:00:05.1]} 75. Qb1+ {[%clk 0:00:03]} 75... Bb2
{[%clk 0:00:05.3]} 76. Qd1+ {[%clk 0:00:03.6]} 76... Ka2 {[%clk 0:00:05.1]} 77.
Qd2 {[%clk 0:00:04.2]} 77... Kb1 {[%clk 0:00:04.7]} 78. g4 {[%clk 0:00:04.4]}
78... Bc1 {[%clk 0:00:04.3]} 79. Qd1 {[%clk 0:00:04.6]} 79... d2 {[%clk
0:00:04.6]} 80. Qxa4 {[%clk 0:00:04.7]} 80... d1=Q+ {[%clk 0:00:04.2]} 81. Qxd1
{[%clk 0:00:05.4]} 81... Qxd1+ {[%clk 0:00:04.9]} 82. Kg2 {[%clk 0:00:06.3]}
82... Qxg4+ {[%clk 0:00:05.4]} 83. Kf1 {[%clk 0:00:06]} 83... Bxg5 {[%clk
0:00:06.3]} 0-1

[Event "*** Titled Tuesday Blitz"]
[Site "Chess.com"]
[Date "2020.05.26"]
[Round "2"]
[White "robertofabregas"]
[Black "Djager97"]
[Result "0-1"]
[WhiteElo "2100"]
[BlackElo "2393"]
[TimeControl "180+1"]
[EndTime "10:12:24 PDT"]
[Termination "Djager97 won by resignation"]

1. c4 {[%clk 0:03:00.9]} 1... e6 {[%clk 0:03:00]} 2. Nf3 {[%clk 0:03:00.7]} 2...
d5 {[%clk 0:03:00.4]} 3. d4 {[%clk 0:03:00.4]} 3... c6 {[%clk 0:02:59.5]} 4. g3
{[%clk 0:03:00.4]} 4... dxc4 {[%clk 0:02:59.4]} 5. Bg2 {[%clk 0:02:59.8]} 5...
b5 {[%clk 0:03:00]} 6. a4 {[%clk 0:02:56.9]} 6... Bb7 {[%clk 0:03:00]} 7. Ne5
{[%clk 0:02:48.3]} 7... a6 {[%clk 0:02:58.1]} 8. axb5 {[%clk 0:02:43.9]} 8...
axb5 {[%clk 0:02:58]} 9. Rxa8 {[%clk 0:02:44]} 9... Bxa8 {[%clk 0:02:58.9]} 10.
Nc3 {[%clk 0:02:44.1]} 10... Nf6 {[%clk 0:02:45.3]} 11. Nxb5 {[%clk 0:02:30.8]}
11... cxb5 {[%clk 0:02:46.2]} 12. Bxa8 {[%clk 0:02:29.9]} 12... Qa5+ {[%clk
0:02:43.5]} 13. Bd2 {[%clk 0:02:27.7]} 13... Qxa8 {[%clk 0:02:43.9]} 14. f3
{[%clk 0:02:25.1]} 14... Nbd7 {[%clk 0:02:38.9]} 15. Nxd7 {[%clk 0:02:22.7]}
15... Nxd7 {[%clk 0:02:38.5]} 16. e4 {[%clk 0:02:22.4]} 16... Be7 {[%clk
0:02:36.7]} 17. Kf2 {[%clk 0:02:22.8]} 17... O-O {[%clk 0:02:36]} 0-1

[Event "*** Titled Tuesday Blitz"]
[Site "Chess.com"]
[Date "2020.05.26"]
[Round "2"]
[White "JulAnt"]
[Black "crescentmoon2411"]
[Result "0-1"]
[WhiteElo "2414"]
[BlackElo "2774"]
[TimeControl "180+1"]
[EndTime "10:12:50 PDT"]
[Termination "crescentmoon2411 won by resignation"]

1. e4 {[%clk 0:03:00.9]} 1... e5 {[%clk 0:02:58]} 2. Nf3 {[%clk 0:03:00.9]} 2...
Nc6 {[%clk 0:02:57.8]} 3. Bb5 {[%clk 0:03:01]} 3... Nf6 {[%clk 0:02:57.2]} 4. d3
{[%clk 0:02:59.7]} 4... Bc5 {[%clk 0:02:54.7]} 5. c3 {[%clk 0:02:55.5]} 5... O-O
{[%clk 0:02:45.7]} 6. O-O {[%clk 0:02:54.8]} 6... d6 {[%clk 0:02:41.2]} 7. h3
{[%clk 0:02:54.5]} 7... Bb6 {[%clk 0:02:23.2]} 8. Bg5 {[%clk 0:02:52]} 8... Qe7
{[%clk 0:02:20]} 9. Re1 {[%clk 0:02:46.8]} 9... Nd8 {[%clk 0:02:17.6]} 10. Ba4
{[%clk 0:02:35.8]} 10... Ne6 {[%clk 0:02:16]} 11. Bh4 {[%clk 0:02:36]} 11... Nf4
{[%clk 0:02:11.3]} 12. Nbd2 {[%clk 0:02:23.9]} 12... Nxd3 {[%clk 0:02:09]} 13.
Nf1 {[%clk 0:02:14.4]} 13... Nxe1 {[%clk 0:02:02.4]} 0-1

[Event "*** Titled Tuesday Blitz"]
[Site "Chess.com"]
[Date "2020.05.26"]
[Round "2"]
[White "QueenOfTactics90"]
[Black "diablanni"]
[Result "1-0"]
[WhiteElo "1936"]
[BlackElo "2317"]
[TimeControl "180+1"]
[EndTime "10:13:40 PDT"]
[Termination "QueenOfTactics90 won by resignation"]

1. e4 {[%clk 0:03:00.9]} 1... c5 {[%clk 0:02:58.9]} 2. Nf3 {[%clk 0:03:01.2]}
2... Nc6 {[%clk 0:02:57]} 3. d4 {[%clk 0:03:01.6]} 3... cxd4 {[%clk 0:02:55.6]}
4. Nxd4 {[%clk 0:03:02.5]} 4... g6 {[%clk 0:02:55.7]} 5. c4 {[%clk 0:02:58.3]}
5... Nf6 {[%clk 0:02:55.2]} 6. Nc3 {[%clk 0:02:54.6]} 6... d6 {[%clk 0:02:55]}
7. Be3 {[%clk 0:02:53.7]} 7... Ng4 {[%clk 0:02:53.8]} 8. Bc1 {[%clk 0:02:40.3]}
8... Qb6 {[%clk 0:02:49.5]} 9. Nce2 {[%clk 0:01:49.1]} 9... Bg7 {[%clk
0:02:10.3]} 10. h3 {[%clk 0:01:44.2]} 10... Nf6 {[%clk 0:01:55.6]} 11. Nxc6
{[%clk 0:01:38.2]} 11... Qxf2+ {[%clk 0:01:53.8]} 12. Kxf2 {[%clk 0:01:32.1]}
1-0

[Event "*** Titled Tuesday Blitz"]
[Site "Chess.com"]
[Date "2020.05.26"]
[Round "2"]
[White "Ba_clbaf_osed_ingo_3v21"]
[Black "WeAintSurePal"]
[Result "0-1"]
[WhiteElo "2607"]
[BlackElo "2315"]
[TimeControl "180+1"]
[EndTime "10:13:56 PDT"]
[Termination "WeAintSurePal won by resignation"]

1. Nf3 {[%clk 0:03:00.9]} 1... d5 {[%clk 0:02:57.4]} 2. g3 {[%clk 0:03:00.9]}
2... Nf6 {[%clk 0:02:57.3]} 3. Bg2 {[%clk 0:03:01.1]} 3... e6 {[%clk 0:02:57.8]}
4. O-O {[%clk 0:03:01.5]} 4... Be7 {[%clk 0:02:57.9]} 5. c4 {[%clk 0:03:01.9]}
5... dxc4 {[%clk 0:02:57.9]} 6. Qa4+ {[%clk 0:03:00.4]} 6... Bd7 {[%clk
0:02:58.1]} 7. Qxc4 {[%clk 0:03:00.7]} 7... c5 {[%clk 0:02:56]} 8. d3 {[%clk
0:02:59.4]} 8... O-O {[%clk 0:02:54.1]} 9. Qc2 {[%clk 0:02:59.8]} 9... Nc6
{[%clk 0:02:53.6]} 10. a3 {[%clk 0:02:58.4]} 10... Rc8 {[%clk 0:02:54]} 11. b3
{[%clk 0:02:57.9]} 11... Nd4 {[%clk 0:02:53.2]} 12. Nxd4 {[%clk 0:02:56.5]}
12... cxd4 {[%clk 0:02:52.9]} 13. Qb2 {[%clk 0:02:55.2]} 13... Bc6 {[%clk
0:02:52.6]} 14. Bg5 {[%clk 0:02:52.5]} 14... Bxg2 {[%clk 0:02:51.5]} 15. Bxf6
{[%clk 0:02:52.7]} 15... Bxf1 {[%clk 0:02:49.2]} 16. Bxe7 {[%clk 0:02:53.3]}
16... Qxe7 {[%clk 0:02:49.2]} 17. Kxf1 {[%clk 0:02:53.5]} 17... Qc5 {[%clk
0:02:46.5]} 18. Kg2 {[%clk 0:02:41.6]} 18... e5 {[%clk 0:02:24.8]} 19. a4 {[%clk
0:02:37.6]} 19... Qc2 {[%clk 0:02:09]} 20. Qa3 {[%clk 0:02:35.7]} 20... Qxe2
{[%clk 0:02:05.9]} 21. Ra2 {[%clk 0:02:28]} 21... Qxd3 {[%clk 0:02:03.6]} 22.
Nd2 {[%clk 0:02:26.6]} 22... Rc2 {[%clk 0:02:01.9]} 23. Rxc2 {[%clk 0:02:26.6]}
23... Qxc2 {[%clk 0:02:02.2]} 24. Nf3 {[%clk 0:02:26.7]} 24... d3 {[%clk
0:01:53.1]} 25. Qd6 {[%clk 0:02:22.4]} 25... e4 {[%clk 0:01:45.9]} 26. Ng5
{[%clk 0:02:17.5]} 26... d2 {[%clk 0:01:40.7]} 27. Ne6 {[%clk 0:02:07.7]} 27...
fxe6 {[%clk 0:01:37.9]} 0-1

[Event "*** Titled Tuesday Blitz"]
[Site "Chess.com"]
[Date "2020.05.26"]
[Round "2"]
[White "K_A_S_T_O_R"]
[Black "vidavi"]
[Result "1-0"]
[WhiteElo "2720"]
[BlackElo "2309"]
[TimeControl "180+1"]
[EndTime "10:14:00 PDT"]
[Termination "K_A_S_T_O_R won by resignation"]

1. e4 {[%clk 0:03:00.9]} 1... c5 {[%clk 0:03:00.2]} 2. Nf3 {[%clk 0:03:00.3]}
2... d6 {[%clk 0:03:00.5]} 3. d4 {[%clk 0:02:59.6]} 3... cxd4 {[%clk 0:03:01.4]}
4. Nxd4 {[%clk 0:03:00.3]} 4... Nf6 {[%clk 0:03:02.1]} 5. Nc3 {[%clk 0:03:00.7]}
5... a6 {[%clk 0:03:02.6]} 6. Bg5 {[%clk 0:03:00.6]} 6... e6 {[%clk 0:03:02.7]}
7. f4 {[%clk 0:03:00]} 7... b5 {[%clk 0:03:00.1]} 8. e5 {[%clk 0:02:59.7]} 8...
dxe5 {[%clk 0:03:00.5]} 9. fxe5 {[%clk 0:03:00.6]} 9... Qc7 {[%clk 0:03:01]} 10.
exf6 {[%clk 0:03:00.8]} 10... Qe5+ {[%clk 0:03:01]} 11. Be2 {[%clk 0:03:01.4]}
11... Qxg5 {[%clk 0:03:01.3]} 12. O-O {[%clk 0:03:02]} 12... Ra7 {[%clk
0:02:59.6]} 13. Qd3 {[%clk 0:03:02.1]} 13... Rd7 {[%clk 0:02:58.5]} 14. Ne4
{[%clk 0:03:02.7]} 14... Qe5 {[%clk 0:02:56.1]} 15. Nf3 {[%clk 0:03:03.1]} 15...
Qxb2 {[%clk 0:02:54]} 16. Qe3 {[%clk 0:03:03.2]} 16... Bb7 {[%clk 0:02:40.4]}
17. Rab1 {[%clk 0:02:56.9]} 17... Qxc2 {[%clk 0:02:39.8]} 18. Nfg5 {[%clk
0:02:56.6]} 18... Bxe4 {[%clk 0:02:17.9]} 19. Nxe4 {[%clk 0:02:52.9]} 19... Qa4
{[%clk 0:02:06.8]} 20. Rbd1 {[%clk 0:02:45]} 20... Rxd1 {[%clk 0:02:02.4]} 21.
Rxd1 {[%clk 0:02:42.6]} 21... Nd7 {[%clk 0:01:55]} 22. Qa7 {[%clk 0:02:34.9]}
22... Bc5+ {[%clk 0:01:42.9]} 23. Qxc5 {[%clk 0:02:26.1]} 23... Nxc5 {[%clk
0:01:40.4]} 24. fxg7 {[%clk 0:02:26.6]} 24... Rf8 {[%clk 0:01:26.9]} 25. Rd8+
{[%clk 0:02:14.9]} 1-0

[Event "*** Titled Tuesday Blitz"]
[Site "Chess.com"]
[Date "2020.05.26"]
[Round "2"]
[White "tteshan"]
[Black "KacperPolOK"]
[Result "0-1"]
[WhiteElo "2172"]
[BlackElo "2414"]
[TimeControl "180+1"]
[EndTime "10:14:00 PDT"]
[Termination "KacperPolOK won by resignation"]

1. e4 {[%clk 0:03:00.9]} 1... e6 {[%clk 0:02:54.6]} 2. d4 {[%clk 0:02:58.8]}
2... d5 {[%clk 0:02:54.2]} 3. Nd2 {[%clk 0:02:57.6]} 3... Nf6 {[%clk 0:02:53.6]}
4. e5 {[%clk 0:02:53.8]} 4... Nfd7 {[%clk 0:02:53.7]} 5. Ngf3 {[%clk 0:02:54.2]}
5... c5 {[%clk 0:02:53.7]} 6. c3 {[%clk 0:02:53.2]} 6... Nc6 {[%clk 0:02:53.8]}
7. Bd3 {[%clk 0:02:51.2]} 7... cxd4 {[%clk 0:02:51.6]} 8. cxd4 {[%clk 0:02:51]}
8... Qb6 {[%clk 0:02:52.5]} 9. Nb3 {[%clk 0:02:45.3]} 9... a5 {[%clk 0:02:49.3]}
10. a4 {[%clk 0:02:31.3]} 10... Bb4+ {[%clk 0:02:46.1]} 11. Kf1 {[%clk
0:02:09.6]} 11... f6 {[%clk 0:02:43.9]} 12. exf6 {[%clk 0:02:07.9]} 12... Nxf6
{[%clk 0:02:43.5]} 13. g3 {[%clk 0:02:05.7]} 13... O-O {[%clk 0:02:41.8]} 14.
Kg2 {[%clk 0:02:05.6]} 14... e5 {[%clk 0:02:39.3]} 15. dxe5 {[%clk 0:02:00.1]}
15... Ng4 {[%clk 0:02:38.7]} 16. Qe2 {[%clk 0:01:53.6]} 16... Ncxe5 {[%clk
0:02:37.5]} 17. Nbd4 {[%clk 0:01:32.1]} 17... Bc5 {[%clk 0:02:28.2]} 18. Be3
{[%clk 0:01:27.9]} 18... Nxf3 {[%clk 0:02:27]} 19. Nxf3 {[%clk 0:01:26.4]} 19...
Bxe3 {[%clk 0:02:27.1]} 20. fxe3 {[%clk 0:01:26.3]} 20... Nxe3+ {[%clk
0:02:27.2]} 21. Kf2 {[%clk 0:01:20.8]} 21... Bg4 {[%clk 0:02:22.6]} 0-1

[Event "*** Titled Tuesday Blitz"]
[Site "Chess.com"]
[Date "2020.05.26"]
[Round "2"]
[White "rugbyclub"]
[Black "Gerasimenyuk_Miha"]
[Result "0-1"]
[WhiteElo "2101"]
[BlackElo "2395"]
[TimeControl "180+1"]
[EndTime "10:14:22 PDT"]
[Termination "Gerasimenyuk_Miha won on time"]

1. c4 {[%clk 0:02:59.9]} 1... e5 {[%clk 0:02:59.5]} 2. Nc3 {[%clk 0:02:59.2]}
2... Nc6 {[%clk 0:03:00.4]} 3. Nf3 {[%clk 0:02:57]} 3... Bc5 {[%clk 0:03:01]} 4.
e3 {[%clk 0:02:54.8]} 4... a6 {[%clk 0:03:00.3]} 5. d4 {[%clk 0:02:46.5]} 5...
exd4 {[%clk 0:03:01.2]} 6. exd4 {[%clk 0:02:46.4]} 6... Ba7 {[%clk 0:03:02.1]}
7. Be2 {[%clk 0:02:43.3]} 7... d6 {[%clk 0:03:02.3]} 8. O-O {[%clk 0:02:40.8]}
8... Nge7 {[%clk 0:03:02]} 9. Bg5 {[%clk 0:02:37.5]} 9... h6 {[%clk 0:03:00.5]}
10. Bf4 {[%clk 0:02:30.2]} 10... Bg4 {[%clk 0:02:59.5]} 11. d5 {[%clk
0:02:26.5]} 11... Nb8 {[%clk 0:02:58.8]} 12. h3 {[%clk 0:02:23.7]} 12... Bh5
{[%clk 0:02:58.8]} 13. Re1 {[%clk 0:02:22.2]} 13... O-O {[%clk 0:02:58.7]} 14.
Qd2 {[%clk 0:02:11.6]} 14... Nd7 {[%clk 0:02:55.6]} 15. Rac1 {[%clk 0:02:07.7]}
15... f5 {[%clk 0:02:50.7]} 0-1

[Event "*** Titled Tuesday Blitz"]
[Site "Chess.com"]
[Date "2020.05.26"]
[Round "2"]
[White "SamuelGhimpu2003"]
[Black "FairChess_on_YouTube"]
[Result "0-1"]
[WhiteElo "2594"]
[BlackElo "3025"]
[TimeControl "180+1"]
[EndTime "10:14:27 PDT"]
[Termination "FairChess_on_YouTube won by resignation"]

1. Nf3 {[%clk 0:03:00.9]} 1... Nf6 {[%clk 0:02:56.4]} 2. b3 {[%clk 0:03:00.4]}
2... g6 {[%clk 0:02:52.5]} 3. Bb2 {[%clk 0:03:01.3]} 3... Bg7 {[%clk 0:02:53]}
4. e3 {[%clk 0:03:00.9]} 4... O-O {[%clk 0:02:52.2]} 5. c4 {[%clk 0:03:00.9]}
5... d6 {[%clk 0:02:49.7]} 6. d4 {[%clk 0:02:59.6]} 6... e5 {[%clk 0:02:45.3]}
7. dxe5 {[%clk 0:02:47.2]} 7... dxe5 {[%clk 0:02:46.2]} 8. Be2 {[%clk
0:02:31.1]} 8... e4 {[%clk 0:02:39.6]} 9. Qxd8 {[%clk 0:02:25.4]} 9... Rxd8
{[%clk 0:02:39.2]} 10. Nd4 {[%clk 0:02:26.3]} 10... c5 {[%clk 0:02:36.3]} 11.
Nb5 {[%clk 0:02:24.1]} 11... a6 {[%clk 0:02:20.9]} 12. N5c3 {[%clk 0:01:47]}
12... Nc6 {[%clk 0:02:20.3]} 13. Nd2 {[%clk 0:01:43.9]} 13... Nb4 {[%clk
0:02:18.3]} 14. O-O-O {[%clk 0:01:43.8]} 14... Bf5 {[%clk 0:02:10.9]} 15. h3
{[%clk 0:01:39.2]} 15... h5 {[%clk 0:02:06.4]} 16. a3 {[%clk 0:01:36.5]} 16...
Nd3+ {[%clk 0:02:05.2]} 17. Bxd3 {[%clk 0:01:36.7]} 17... Rxd3 {[%clk
0:02:05.8]} 18. Na4 {[%clk 0:01:03]} 18... Nd7 {[%clk 0:01:59.1]} 19. Bxg7
{[%clk 0:01:01.6]} 19... Kxg7 {[%clk 0:02:00]} 20. Nc3 {[%clk 0:00:54.2]} 0-1

[Event "*** Titled Tuesday Blitz"]
[Site "Chess.com"]
[Date "2020.05.26"]
[Round "2"]
[White "MrMatesM"]
[Black "AndrewDGreen"]
[Result "1-0"]
[WhiteElo "2599"]
[BlackElo "2296"]
[TimeControl "180+1"]
[EndTime "10:14:29 PDT"]
[Termination "MrMatesM won by resignation"]

1. d4 {[%clk 0:03:00.9]} 1... Nf6 {[%clk 0:02:59.4]} 2. Nc3 {[%clk 0:03:01.3]}
2... d5 {[%clk 0:02:55.6]} 3. Bf4 {[%clk 0:03:01.3]} 3... a6 {[%clk 0:02:51.7]}
4. e3 {[%clk 0:03:01.5]} 4... e6 {[%clk 0:02:42.3]} 5. Bd3 {[%clk 0:03:01.4]}
5... c5 {[%clk 0:02:42.2]} 6. dxc5 {[%clk 0:03:00.9]} 6... Bxc5 {[%clk
0:02:41.5]} 7. Nf3 {[%clk 0:03:01.3]} 7... Nc6 {[%clk 0:02:40.3]} 8. O-O {[%clk
0:03:01.4]} 8... O-O {[%clk 0:02:40.2]} 9. e4 {[%clk 0:03:01.9]} 9... d4 {[%clk
0:02:28.1]} 10. Ne2 {[%clk 0:03:00.9]} 10... b5 {[%clk 0:02:21.3]} 11. Ng3
{[%clk 0:02:57.6]} 11... Bb7 {[%clk 0:02:16.6]} 12. Bg5 {[%clk 0:02:52.8]} 12...
Be7 {[%clk 0:02:09]} 13. a3 {[%clk 0:02:52.2]} 13... Rc8 {[%clk 0:02:02.9]} 14.
h3 {[%clk 0:02:47]} 14... h6 {[%clk 0:01:44.7]} 15. Bd2 {[%clk 0:02:41.3]} 15...
Na5 {[%clk 0:01:38.5]} 16. b3 {[%clk 0:02:37.5]} 16... Nc6 {[%clk 0:01:29.7]}
17. Qe2 {[%clk 0:02:37.7]} 17... Qc7 {[%clk 0:01:24.3]} 18. e5 {[%clk
0:02:29.3]} 18... Nd5 {[%clk 0:00:52]} 19. Qe4 {[%clk 0:02:28.9]} 19... f5
{[%clk 0:00:52.1]} 20. exf6 {[%clk 0:02:28.7]} 20... Nxf6 {[%clk 0:00:51.4]} 21.
Qxe6+ {[%clk 0:02:28.9]} 21... Kh8 {[%clk 0:00:51.6]} 22. Nh4 {[%clk 0:02:21.9]}
22... Ne5 {[%clk 0:00:38.3]} 23. Qxe5 {[%clk 0:02:22]} 1-0

[Event "*** Titled Tuesday Blitz"]
[Site "Chess.com"]
[Date "2020.05.26"]
[Round "2"]
[White "PlayChessSimple"]
[Black "rogapa"]
[Result "1-0"]
[WhiteElo "2497"]
[BlackElo "2711"]
[TimeControl "180+1"]
[EndTime "10:14:35 PDT"]
[Termination "PlayChessSimple won by checkmate"]

1. e4 {[%clk 0:03:00.9]} 1... c5 {[%clk 0:03:00]} 2. Nf3 {[%clk 0:03:00]} 2...
d6 {[%clk 0:03:00.3]} 3. c3 {[%clk 0:03:00.3]} 3... Nf6 {[%clk 0:02:59.9]} 4. h3
{[%clk 0:03:00.6]} 4... g6 {[%clk 0:02:59.9]} 5. Bd3 {[%clk 0:03:01.2]} 5... Bg7
{[%clk 0:03:00.1]} 6. Bc2 {[%clk 0:03:01.4]} 6... O-O {[%clk 0:03:01]} 7. d4
{[%clk 0:03:01.5]} 7... cxd4 {[%clk 0:02:59]} 8. cxd4 {[%clk 0:03:01]} 8... Nc6
{[%clk 0:02:59.9]} 9. O-O {[%clk 0:03:00.9]} 9... Nb4 {[%clk 0:02:59.8]} 10. Bb3
{[%clk 0:03:00.7]} 10... Nxe4 {[%clk 0:02:58.6]} 11. Qe1 {[%clk 0:03:00.3]}
11... Nxf2 {[%clk 0:02:47.6]} 12. Qxb4 {[%clk 0:02:47.9]} 12... Nd3 {[%clk
0:02:42.9]} 13. Qd2 {[%clk 0:02:37.2]} 13... Nxc1 {[%clk 0:02:42.3]} 14. Rxc1
{[%clk 0:02:36.6]} 14... Qb6 {[%clk 0:02:42.1]} 15. Nc3 {[%clk 0:02:34.7]} 15...
e6 {[%clk 0:02:41.7]} 16. Kh1 {[%clk 0:02:30.5]} 16... Bd7 {[%clk 0:02:41.2]}
17. Ne4 {[%clk 0:02:06.7]} 17... Bc6 {[%clk 0:02:36.3]} 18. Qf4 {[%clk
0:01:55.2]} 18... e5 {[%clk 0:02:29.5]} 19. dxe5 {[%clk 0:01:43.8]} 19... dxe5
{[%clk 0:02:30.4]} 20. Nxe5 {[%clk 0:01:41.2]} 20... Bxe4 {[%clk 0:02:29.7]} 21.
Bxf7+ {[%clk 0:01:27.4]} 21... Kh8 {[%clk 0:02:08.4]} 22. Qxe4 {[%clk
0:01:27.3]} 22... Qb5 {[%clk 0:02:08.4]} 23. Bd5 {[%clk 0:01:07.3]} 23... Rae8
{[%clk 0:02:06.6]} 24. Nxg6+ {[%clk 0:01:05.5]} 24... hxg6 {[%clk 0:02:03]} 25.
Qh4+ {[%clk 0:01:05.2]} 25... Bh6 {[%clk 0:02:00.8]} 26. Qxh6# {[%clk
0:01:05.1]} 1-0